fUSD/lending_fUSD_20241105
["ID","MTS","AMOUNT","RATE_DAILY","PERIOD"]
[341349147,1730818353758,-1000.0,0.00041096,13]
[341349148,1730818353767,-1035.0,0.00041096,13]
[341349149,1730818353778,-150.0,0.00041096,2]
[341349150,1730818353787,-157.0,0.00041096,2]
[341349151,1730818353797,-151.0,0.00041096,14]
[341349152,1730818353806,-1579.11942746,0.000411,2]
[341349153,1730818353816,-182.57184193,0.000411,2]
[341349154,1730818353826,-2503.21682814,0.000411,2]
[341349155,1730818353835,-640.89688943,0.0004111,10]
[341349156,1730818353845,-573.16406,0.0004112,50]
[341349157,1730818353855,-1108.24,0.00041129,2]
[341349158,1730818353864,-4851.01,0.00041155,2]
[341349159,1730818353877,-5000.0,0.00041168,2]
[341349160,1730818353886,-5000.0,0.00041184,2]
[341349161,1730818353896,-25000.0,0.00041209,2]
[341349162,1730818353906,-2705.25,0.00041237,2]
[341349163,1730818353915,-5000.0,0.00041282,2]
[341349164,1730818353925,-5000.0,0.00041312,2]
[341349165,1730818353935,-177.94654558,0.00041315,30]
[341349166,1730818353945,-500.0,0.00041369,60]
[341349167,1730818353955,-1400.0,0.00041369,60]
[341349168,1730818353964,-500.0,0.00041369,60]
[341349169,1730818353975,-1000.0,0.0004137,2]
[341349170,1730818353985,-25000.0,0.00041375,2]
[341349171,1730818353995,-5000.0,0.00041399,2]
[341349172,1730818354004,-209.0,0.000414,30]
[341349173,1730818354014,-310.0,0.000414,120]
[341349174,1730818354024,-617.36,0.00041425,2]
[341349175,1730818354034,-1000.0,0.00041438,120]
[341349176,1730818354044,-5000.0,0.00041462,2]
[341349177,1730818354053,-16780.0,0.00041463,7]
[341349178,1730818354063,-4427.6,0.00041483,2]
[341349179,1730818354072,-5000.0,0.00041504,2]
[341349180,1730818354082,-152.0,0.00041526,24]
[341349181,1730818354092,-3914.03,0.00041545,2]
[341349182,1730818354102,-5000.0,0.00041566,2]
[341349183,1730818354111,-1609.86,0.00041594,2]
[341349184,1730818354120,-4147.07,0.00041617,2]
[341349185,1730818354131,-5000.0,0.00041631,2]
[341349186,1730818354140,-5000.0,0.00041667,2]
[341349187,1730818354150,-47388.93833683,0.000417,7]
[341349188,1730818354159,-1278.98,0.00041705,2]
[341349189,1730818354169,-5000.0,0.00041711,2]
[341349190,1730818354179,-16382.74,0.00041716,2]
[341349191,1730818354188,-3018.48,0.00041728,2]
[341349192,1730818354198,-500.0,0.00041739,120]
[341349193,1730818354208,-500.0,0.00041739,120]
[341349194,1730818354217,-579.0,0.00041739,120]
[341349195,1730818354227,-2382.66,0.00041775,2]
[341349196,1730818354236,-2019.5,0.0004178,120]
[341349197,1730818354246,-5015.78557,0.00041798,30]
[341349198,1730818354256,-150.0,0.000418,21]
[341349199,1730818354268,-1411.74,0.00041812,2]
[341349200,1730818354278,-177.94654558,0.00041836,30]
[341349201,1730818354288,-419.12105333,0.00041889,120]
[341349202,1730818354299,-5000.0,0.0004189,2]
[341349203,1730818354309,-1400.0,0.00041917,60]
[341349204,1730818354319,-2600.0,0.00041917,60]
[341349205,1730818354330,-150.0,0.00041918,30]
[341349206,1730818354342,-150.0,0.00041918,30]
[341349207,1730818354352,-150.0,0.00041918,30]
[341349208,1730818354362,-158.04513965,0.00041918,30]
[341349209,1730818354371,-150.0,0.00041918,30]
[341349210,1730818354384,-168.12395362,0.00041918,30]
[341349211,1730818354395,-150.0,0.00041918,30]
[341349212,1730818354404,-8881.42732193,0.00042,2]
[341349213,1730818354414,-432.7041036,0.00042,14]
[341349214,1730818354424,-5000.0,0.00042,10]
[341349215,1730818354435,-5000.0,0.00042,11]
[341349216,1730818354445,-5000.0,0.00042,12]
[341349217,1730818354455,-3700.0,0.00042,7]
[341349218,1730818354465,-5000.0,0.00042,5]
[341349219,1730818354476,-759.0,0.00042,4]
[341349220,1730818354485,-100033.23929319,0.00042,2]
[341349221,1730818354495,-1568.82710738,0.00042,14]
[341349222,1730818354505,-13547.0,0.00042,120]
[341349223,1730818354515,-4401.0,0.00042,120]
[341349224,1730818354524,-439.6370856,0.00042,120]
[341349225,1730818354535,-1113.88855217,0.00042,120]
[341349226,1730818354545,-599.499932,0.00042,120]
[341349227,1730818354555,-250.0,0.00042,30]
[341349228,1730818354564,-150.0,0.00042,120]
[341349229,1730818354574,-547.16,0.00042,31]
[341349230,1730818354583,-547.16,0.00042,31]
[341349231,1730818354592,-547.16,0.00042,31]
[341349232,1730818354601,-547.16,0.00042,31]
[341349233,1730818354611,-547.16,0.00042,31]
[341349234,1730818354620,-547.16,0.00042,31]
[341349235,1730818354631,-547.16,0.00042,31]
[341349236,1730818354640,-547.16,0.00042,31]
[341349237,1730818354650,-547.16,0.00042,31]
[341349238,1730818354659,-547.16,0.00042,31]
[341349239,1730818354668,-547.16,0.00042,31]
[341349240,1730818354678,-547.16,0.00042,31]
[341349241,1730818354687,-547.16,0.00042,31]
[341349242,1730818354696,-547.16,0.00042,31]
[341349243,1730818354706,-547.16,0.00042,31]
[341349244,1730818354715,-547.16,0.00042,31]
[341349245,1730818354724,-547.16,0.00042,31]
[341349246,1730818354733,-547.16,0.00042,31]
[341349247,1730818354743,-547.16,0.00042,31]
[341349248,1730818354752,-547.16,0.00042,31]
[341349249,1730818354763,-547.16,0.00042,31]
[341349250,1730818354774,-547.16,0.00042,31]
[341349251,1730818354784,-547.16,0.00042,31]
[341349252,1730818354793,-547.16,0.00042,31]
[341349253,1730818354803,-1317.14163092,0.0004201,2]
[341349254,1730818354813,-150.0,0.00042019,30]
[341349255,1730818354822,-152.0,0.00042088,25]
[341349256,1730818354833,-3003.46309276,0.00042105,15]
[341349257,1730818354844,-150.0,0.0004212,30]
[341349258,1730818354855,-150.0,0.0004212,30]
[341349259,1730818354866,-150.0,0.00042127,120]
[341349260,1730818354879,-150.0,0.0004215,30]
[341349261,1730818354888,-150.0,0.00042177,2]
[341349262,1730818354898,-150.0,0.00042221,30]
[341349263,1730818354907,-150.0,0.00042323,30]
[341349264,1730818354916,-150.0,0.00042323,30]
[341349265,1730818354926,-150.0,0.00042383,30]
[341349266,1730818354935,-150.0,0.00042424,30]
[341349267,1730818354944,-500.0,0.00042465,60]
[341349268,1730818354954,-2019.5,0.00042465,120]
[341349269,1730818354963,-500.0,0.00042465,60]
[341349270,1730818354973,-150.0,0.00042525,30]
[341349271,1730818354982,-150.0,0.00042525,30]
[341349272,1730818354992,-500.0,0.00042596,120]
[341349273,1730818355001,-192.0,0.000426,29]
[341349274,1730818355011,-150.0,0.00042616,30]
[341349275,1730818355020,-209.0,0.0004262,30]
[341349276,1730818355029,-150.0,0.00042626,30]
[341349277,1730818355038,-152.0,0.00042651,26]
[341349278,1730818355047,-7477.61204043,0.00042666,2]
[341349279,1730818355056,-151.0,0.00042666,14]
[341349280,1730818355066,-4071.0,0.000427,117]
[341349281,1730818355076,-150.0,0.00042728,30]
[341349282,1730818355085,-150.0,0.00042728,30]
[341349283,1730818355094,-208.66877555,0.0004274,30]
[341349284,1730818355103,-2000.0,0.0004274,2]
[341349285,1730818355113,-996.44,0.0004274,63]
[341349286,1730818355122,-1075.77367427,0.00042773,5]
[341349287,1730818355136,-1692.52494105,0.00042798,120]
[341349288,1730818355146,-1000.0,0.00042807,120]
[341349289,1730818355156,-150.0,0.00042829,30]
[341349290,1730818355166,-9204.63897599,0.00042846,4]
[341349291,1730818355175,-150.0,0.00042849,30]
[341349292,1730818355185,-15121.14891166,0.00042874,10]
[341349293,1730818355194,-1083.16171283,0.000429,30]
[341349294,1730818355203,-448.17201838,0.000429,60]
[341349295,1730818355213,-921.83,0.00042924,30]
[341349296,1730818355222,-150.0,0.0004293,30]
[341349297,1730818355231,-150.0,0.0004293,30]
[341349298,1730818355241,-249.61,0.00042965,120]
[341349299,1730818355251,-1000.15978324,0.00043,2]
[341349300,1730818355263,-62906.16982489,0.00043,2]
[341349301,1730818355273,-374.14509877,0.00043,7]
[341349302,1730818355285,-5000.0,0.00043,13]
[341349303,1730818355294,-5000.0,0.00043,14]
[341349304,1730818355303,-685.67203776,0.00043,14]
[341349305,1730818355312,-5505.54061153,0.00043,7]
[341349306,1730818355321,-214.78016126,0.00043,7]
[341349307,1730818355330,-400.42071027,0.00043,2]
[341349308,1730818355340,-5870.33399194,0.00043,10]
[341349309,1730818355351,-200.0,0.00043,3]
[341349310,1730818355360,-2000.0,0.00043,30]
[341349311,1730818355369,-2000.0,0.00043,30]
[341349312,1730818355382,-2399.402,0.00043,30]
[341349313,1730818355391,-259.90831133,0.00043,33]
[341349314,1730818355400,-2000.0,0.00043,30]
[341349315,1730818355409,-2000.0,0.00043,30]
[341349316,1730818355419,-2000.0,0.00043,30]
[341349317,1730818355428,-2000.0,0.00043,30]
[341349318,1730818355437,-2000.0,0.00043,30]
[341349319,1730818355446,-341.8379242,0.00043,30]
[341349320,1730818355455,-2000.0,0.00043,30]
[341349321,1730818355466,-800.31127249,0.00043,120]
[341349322,1730818355475,-1255.00902579,0.00043,120]
[341349323,1730818355485,-4970.0305553,0.00043,120]
[341349324,1730818355497,-159.55013523,0.00043,120]
[341349325,1730818355506,-329.55956762,0.00043,30]
[341349326,1730818355514,-1826.0,0.00043,30]
[341349327,1730818355524,-2000.0,0.00043,30]
[341349328,1730818355533,-1934.0,0.00043,120]
[341349329,1730818355542,-6075.52261565,0.00043,120]
[341349330,1730818355553,-1362.63822478,0.00043,120]
[341349331,1730818355564,-503.4,0.00043,30]
[341349332,1730818355575,-2000.0,0.00043,60]
[341349333,1730818355583,-37185.0,0.00043,30]
[341349334,1730818355594,-1400.0,0.00043013,60]
[341349335,1730818355603,-2600.0,0.00043013,60]
[341349336,1730818355612,-2000.0,0.00043014,2]
[341349337,1730818355622,-150.0,0.00043031,30]
[341349338,1730818355633,-150.0,0.00043082,30]
[341349339,1730818355642,-150.0,0.00043133,30]
[341349340,1730818355651,-150.0,0.00043133,30]
[341349341,1730818355660,-2019.5,0.0004315,120]
[341349342,1730818355669,-3889.74297254,0.000432,120]
[341349343,1730818355679,-8087.60426,0.000432,120]
[341349344,1730818355689,-29094.65997889,0.000432,120]
[341349345,1730818355698,-152.0,0.00043214,27]
[341349346,1730818355707,-422.00862616,0.0004322,2]
[341349347,1730818355717,-24284.03186945,0.0004322,2]
[341349348,1730818355726,-150.0,0.00043234,30]
[341349349,1730818355736,-774.702,0.00043251,14]
[341349350,1730818355745,-150.0,0.00043259,2]
[341349351,1730818355755,-156.79,0.00043267,120]
[341349352,1730818355764,-2000.0,0.00043288,2]
[341349353,1730818355773,-4109.0815342,0.000433,7]
[341349354,1730818355783,-1000.0,0.000433,30]
[341349355,1730818355791,-1000.0,0.000433,30]
[341349356,1730818355800,-340.0,0.000433,120]
[341349357,1730818355809,-320.0,0.000433,30]
[341349358,1730818355819,-3204.88669015,0.000433,120]
[341349359,1730818355829,-150.0,0.00043315,30]
[341349360,1730818355841,-150.0,0.00043335,30]
[341349361,1730818355850,-150.0,0.00043335,30]
[341349362,1730818355859,-12009.36574438,0.0004336,2]
[341349363,1730818355869,-50000.0,0.0004339,4]
[341349364,1730818355881,-50000.0,0.0004339,6]
[341349365,1730818355890,-50000.0,0.0004339,7]
[341349366,1730818355899,-50000.0,0.0004339,8]
[341349367,1730818355909,-50000.0,0.0004339,9]
[341349368,1730818355918,-50000.0,0.0004339,10]
[341349369,1730818355928,-50000.0,0.0004339,13]
[341349370,1730818355937,-50000.0,0.0004339,14]
[341349371,1730818355949,-50000.0,0.0004339,16]
[341349372,1730818355960,-50000.0,0.0004339,17]
[341349373,1730818355969,-50000.0,0.0004339,18]
[341349374,1730818355978,-50000.0,0.0004339,19]
[341349375,1730818355988,-50000.0,0.0004339,20]
[341349376,1730818355997,-50000.0,0.0004339,21]
[341349377,1730818356007,-50000.0,0.0004339,23]
[341349378,1730818356016,-50000.0,0.0004339,24]
[341349379,1730818356025,-176016.56301049,0.00043391,2]
[341349380,1730818356034,-161770.30653559,0.00043391,2]
[341349381,1730818356043,-2500.0,0.00043391,2]
[341349382,1730818356052,-2344.66546321,0.00043391,2]
[341349383,1730818356062,-222572.94848812,0.00043391,2]
[341349384,1730818356072,-22675.09228594,0.00043391,2]
[341349385,1730818356083,-22979.40576857,0.00043391,2]
[341349386,1730818356092,-993.27106703,0.00043391,2]
[341349387,1730818356101,-1856.40787014,0.00043391,2]
[341349388,1730818356110,-26754.69492341,0.00043391,2]
[341349389,1730818356120,-150.0,0.00043391,2]
[341349390,1730818356132,-5232.24869635,0.00043391,4]
[341349391,1730818356142,-1259.40132172,0.00043391,4]
[341349392,1730818356151,-961.32041235,0.00043391,4]
[341349393,1730818356161,-155193.82234067,0.00043391,5]
[341349394,1730818356171,-4022.79443145,0.00043391,15]
[341349395,1730818356180,-96238.40953067,0.00043391,10]
[341349396,1730818356190,-2477.48408778,0.00043391,15]
[341349397,1730818356199,-161175.15676342,0.00043391,7]
[341349398,1730818356209,-4746.3412466,0.00043391,10]
[341349399,1730818356220,-150.0,0.00043391,2]
[341349400,1730818356229,-304012.31071887,0.00043391,14]
[341349401,1730818356238,-50000.0,0.00043391,19]
[341349402,1730818356248,-50000.0,0.00043391,20]
[341349403,1730818356258,-50000.0,0.00043391,23]
[341349404,1730818356270,-50000.0,0.00043391,28]
[341349405,1730818356279,-3121.6,0.00043391,2]
[341349406,1730818356288,-50000.0,0.00043391,16]
[341349407,1730818356299,-275.0,0.00043391,14]
[341349408,1730818356308,-574.03600676,0.00043391,2]
[341349409,1730818356317,-127158.14450537,0.00043391,2]
[341349410,1730818356327,-5104.74519858,0.00043391,4]
[341349411,1730818356336,-12806.89834026,0.00043391,2]
[341349412,1730818356347,-21082.02185887,0.00043391,4]
[341349413,1730818356357,-135386.77464316,0.00043391,2]
[341349414,1730818356366,-551.1438722,0.00043391,5]
[341349415,1730818356375,-1947.53816882,0.00043391,5]
[341349416,1730818356387,-957.84100971,0.00043391,5]
[341349417,1730818356396,-855.92285373,0.00043391,5]
[341349418,1730818356406,-580.57427012,0.00043391,5]
[341349419,1730818356416,-372.00006155,0.00043391,2]
[341349420,1730818356426,-1210.0,0.00043391,2]
[341349421,1730818356435,-3675.69006593,0.00043391,2]
[341349422,1730818356445,-342.93963348,0.00043391,2]
[341349423,1730818356454,-2960.26016581,0.00043391,2]
[341349424,1730818356463,-1497.33447465,0.00043391,2]
[341349425,1730818356475,-7266.41649377,0.00043391,2]
[341349426,1730818356486,-1013.7102424,0.00043391,2]
[341349427,1730818356496,-5105.57113128,0.00043391,2]
[341349428,1730818356505,-2691.34159994,0.00043391,2]
[341349429,1730818356515,-2417.44396752,0.00043391,2]
[341349430,1730818356524,-2637.44619367,0.00043391,2]
[341349431,1730818356533,-3198.04016578,0.00043391,2]
[341349432,1730818356543,-1460.73051767,0.00043391,2]
[341349433,1730818356553,-7603.63532156,0.00043391,2]
[341349434,1730818356562,-1052.42407134,0.00043391,2]
[341349435,1730818356571,-5881.20187193,0.00043391,2]
[341349436,1730818356580,-856.753175,0.00043391,2]
[341349437,1730818356785,-188.01044925,0.00043391,2]
[341349438,1730818356796,-9100.66384278,0.00043391,2]
[341349439,1730818356805,-1291.62472966,0.00043391,2]
[341349440,1730818356815,-4868.46855195,0.00043391,2]
[341349441,1730818356824,-292.36656547,0.00043391,2]
[341349442,1730818356834,-12645.34740545,0.00043391,2]
[341349443,1730818356843,-1892.58721695,0.00043391,2]
[341349444,1730818356853,-181.30393357,0.00043391,2]
[341349445,1730818356863,-5501.85553986,0.00043391,2]
[341349446,1730818356873,-564.49305354,0.00043391,2]
[341349447,1730818356885,-1809.85281791,0.00043391,2]
[341349448,1730818356894,-3196.23925819,0.00043391,2]
[341349449,1730818356904,-172.82999948,0.00043391,2]
[341349450,1730818356914,-6983.80570343,0.00043391,2]
[341349451,1730818356923,-550.0,0.00043391,2]
[341349452,1730818356933,-1445.11582097,0.00043391,2]
[341349453,1730818356943,-993.37599538,0.00043391,2]
[341349454,1730818356953,-940.74758391,0.00043391,2]
[341349455,1730818356963,-10553.76781319,0.00043391,2]
[341349456,1730818356973,-167230.46593968,0.00043391,2]
[341349457,1730818356983,-171.18073275,0.00043391,2]
[341349458,1730818356992,-6000.0,0.00043391,2]
[341349459,1730818357001,-1018.15549323,0.00043391,2]
[341349460,1730818357011,-554.9522218,0.00043391,2]
[341349461,1730818357021,-150.0,0.00043391,2]
[341349462,1730818357030,-704072.00538829,0.00043391,2]
[341349463,1730818357040,-2641.49124537,0.00043391,2]
[341349464,1730818357050,-214.58497876,0.00043391,5]
[341349465,1730818357059,-443.15234998,0.00043391,2]
[341349466,1730818357068,-20967.47510644,0.00043391,2]
[341349467,1730818357078,-1051.81893305,0.00043391,2]
[341349468,1730818357087,-571.04731888,0.00043391,2]
[341349469,1730818357096,-531.23518323,0.00043391,2]
[341349470,1730818357106,-173802.6401405,0.00043391,2]
[341349471,1730818357115,-899.28851651,0.00043391,2]
[341349472,1730818357124,-474.73253475,0.00043391,2]
[341349473,1730818357137,-1563.49531925,0.00043391,2]
[341349474,1730818357146,-2000.0,0.00043391,2]
[341349475,1730818357156,-10836.04914257,0.00043391,2]
[341349476,1730818357165,-321.12211233,0.00043391,2]
[341349477,1730818357173,-539.78065423,0.00043391,2]
[341349478,1730818357182,-4934.130969,0.00043391,2]
[341349479,1730818357192,-359.41107071,0.00043391,2]
[341349480,1730818357201,-2172.92804471,0.00043391,2]
[341349481,1730818357211,-279.50425618,0.00043391,2]
[341349482,1730818357221,-10175.83712189,0.00043391,7]
[341349483,1730818357231,-6649.02911877,0.00043391,4]
[341349484,1730818357240,-543.42194924,0.00043391,2]
[341349485,1730818357249,-217.07807527,0.00043391,2]
[341349486,1730818357259,-13857.88128506,0.00043391,2]
[341349487,1730818357270,-1039.0,0.00043391,2]
[341349488,1730818357283,-1409.49740296,0.00043391,2]
[341349489,1730818357294,-199.7098305,0.00043391,2]
[341349490,1730818357304,-202.34779888,0.00043391,7]
[341349491,1730818357315,-10000.0,0.00043391,3]
[341349492,1730818357325,-3214.92298773,0.00043391,3]
[341349493,1730818357335,-237.639999,0.00043391,2]
[341349494,1730818357345,-401035.3725564,0.00043391,10]
[341349495,1730818357354,-1000.0,0.00043391,2]
[341349496,1730818357363,-1000.0,0.00043391,2]
[341349497,1730818357373,-1000.0,0.00043391,2]
[341349498,1730818357386,-18572.01864552,0.00043391,5]
[341349499,1730818357395,-1974.5861078,0.00043391,2]
[341349500,1730818357404,-383.25,0.00043391,2]
[341349501,1730818357414,-170613.69523469,0.00043391,2]
[341349502,1730818357423,-484.06062674,0.00043391,16]
[341349503,1730818357432,-238.71479139,0.00043391,7]
[341349504,1730818357442,-933.48169705,0.00043391,20]
[341349505,1730818357451,-519.334454,0.00043391,7]
[341349506,1730818357460,-300.0,0.00043391,15]
[341349507,1730818357469,-135391.89351884,0.00043391,2]
[341349508,1730818357478,-149813.20636827,0.00043391,2]
[341349509,1730818357487,-18276.98409293,0.00043391,2]
[341349510,1730818357496,-1473591.34182587,0.00043391,2]
[341349511,1730818357506,-1092.67963751,0.00043391,7]
[341349512,1730818357515,-212.52788918,0.00043391,7]
[341349513,1730818357524,-208.50909697,0.00043391,5]
[341349514,1730818357533,-4132.64923684,0.00043391,5]
[341349515,1730818357542,-2000.0,0.00043391,24]
[341349516,1730818357552,-1000.0,0.00043391,27]
[341349517,1730818357561,-1000.0,0.00043391,29]
[341349518,1730818357570,-715.93653435,0.00043391,27]
[341349519,1730818357579,-1000.0,0.00043391,20]
[341349520,1730818357588,-107038.06811546,0.00043391,2]
[341349521,1730818357598,-3897.12119064,0.00043391,3]
[341349522,1730818357607,-839.17829099,0.00043391,2]
[341349523,1730818357617,-44551.91323381,0.00043391,10]
[341349524,1730818357627,-1052.59651389,0.00043391,7]
[341349525,1730818357638,-3494.5514,0.00043391,30]
[341349526,1730818357647,-201.2,0.00043391,30]
[341349527,1730818357656,-201.2,0.00043391,30]
[341349528,1730818357666,-808.0,0.00043391,60]
[341349529,1730818357676,-1784.11376085,0.00043391,30]
[341349530,1730818357685,-1097.07076234,0.00043391,30]
[341349531,1730818357695,-420.29592204,0.00043391,30]
[341349532,1730818357704,-796.0,0.00043391,30]
[341349533,1730818357714,-3239.0,0.00043391,30]
[341349534,1730818357723,-1000.0,0.00043391,30]
[341349535,1730818357733,-1000.0,0.00043391,30]
[341349536,1730818357743,-1000.0,0.00043391,30]
[341349537,1730818357752,-1000.0,0.00043391,30]
[341349538,1730818357762,-1000.0,0.00043391,30]
[341349539,1730818357772,-1000.0,0.00043391,30]
[341349540,1730818357782,-1000.0,0.00043391,30]
[341349541,1730818357792,-1000.0,0.00043391,30]
[341349542,1730818357801,-1000.0,0.00043391,30]
[341349543,1730818357811,-1002.33120485,0.00043391,30]
[341349544,1730818357820,-1000.0,0.00043391,30]
[341349545,1730818357829,-1000.0,0.00043391,30]
[341349546,1730818357839,-469.02876129,0.00043391,30]
[341349547,1730818357848,-50000.0,0.00043391,22]
[341349548,1730818357858,-50000.0,0.00043391,30]
[341349549,1730818357867,-150.0,0.00043391,30]
[341349550,1730818357877,-50000.0,0.00043391,31]
[341349551,1730818357887,-50000.0,0.00043391,32]
[341349552,1730818357896,-50000.0,0.00043391,33]
[341349553,1730818357905,-50000.0,0.00043391,34]
[341349554,1730818357914,-150.0,0.00043391,30]
[341349555,1730818357923,-191.0,0.00043391,30]
[341349556,1730818357932,-196.0,0.00043391,30]
[341349557,1730818357941,-196.0,0.00043391,30]
[341349558,1730818357950,-196.0,0.00043391,30]
[341349559,1730818357959,-200.0,0.00043391,30]
[341349560,1730818357968,-192.0,0.00043391,30]
[341349561,1730818357978,-1000.0,0.00043391,30]
[341349562,1730818357987,-1000.0,0.00043391,30]
[341349563,1730818357996,-1000.0,0.00043391,30]
[341349564,1730818358004,-1075.151138,0.00043391,30]
[341349565,1730818358014,-20000.0,0.00043391,60]
[341349566,1730818358023,-15000.0,0.00043391,90]
[341349567,1730818358032,-17136.09075804,0.00043391,90]
[341349568,1730818358042,-440.8,0.000434,120]
[341349569,1730818358052,-2272.65,0.000434,2]
[341349570,1730818358062,-500.0,0.00043401,30]
[341349571,1730818358071,-500.0,0.00043401,120]
[341349572,1730818358080,-500.0,0.00043401,30]
[341349573,1730818358091,-500.0,0.00043401,30]
[341349574,1730818358100,-500.0,0.00043401,30]
[341349575,1730818358109,-154.405893,0.00043401,14]
[341349576,1730818358118,-154.405893,0.00043401,14]
[341349577,1730818358129,-154.405893,0.00043401,14]
[341349578,1730818358140,-154.405893,0.00043401,14]
[341349579,1730818358149,-154.405893,0.00043401,14]
[341349580,1730818358158,-154.405896,0.00043401,14]
[341349581,1730818358167,-500.0,0.00043401,30]
[341349582,1730818358178,-208.28391092,0.00043401,30]
[341349583,1730818358187,-198.86589123,0.00043401,120]
[341349584,1730818358196,-413.08669342,0.00043411,30]
[341349585,1730818358206,-161.62718784,0.00043411,30]
[341349586,1730818358216,-150.0,0.00043436,30]
[341349587,1730818358225,-11180.56562973,0.0004344,28]
[341349588,1730818358235,-150.0,0.0004347,30]
[341349589,1730818358244,-1000.0,0.000435,120]
[341349590,1730818358254,-186.1310833,0.000435,120]
[341349591,1730818358264,-150.0,0.00043538,30]
[341349592,1730818358276,-150.0,0.00043538,30]
[341349593,1730818358286,-150.0,0.00043548,30]
[341349594,1730818358295,-1011.832459,0.0004356,19]
[341349595,1730818358304,-500.0,0.00043561,60]
[341349596,1730818358314,-500.0,0.00043561,120]
[341349597,1730818358324,-500.0,0.00043561,120]
[341349598,1730818358333,-500.0,0.00043561,120]
[341349599,1730818358342,-500.0,0.00043561,120]
[341349600,1730818358353,-500.0,0.00043561,120]
[341349601,1730818358363,-500.0,0.00043561,120]
[341349602,1730818358372,-500.0,0.00043561,120]
[341349603,1730818358383,-500.0,0.00043561,120]
[341349604,1730818358392,-500.0,0.00043561,120]
[341349605,1730818358401,-500.0,0.00043561,120]
[341349606,1730818358411,-500.0,0.00043561,120]
[341349607,1730818358420,-500.0,0.00043561,120]
[341349608,1730818358429,-500.0,0.00043561,120]
[341349609,1730818358439,-500.0,0.00043561,120]
[341349610,1730818358449,-500.0,0.00043561,120]
[341349611,1730818358458,-500.0,0.00043561,120]
[341349612,1730818358467,-500.0,0.00043561,120]
[341349613,1730818358476,-500.0,0.00043561,120]
[341349614,1730818358486,-272.75659119,0.00043561,120]
[341349615,1730818358495,-248.58081749,0.00043561,60]
[341349616,1730818358505,-2000.0,0.00043562,2]
[341349617,1730818358514,-1200.0,0.0004357,3]
[341349618,1730818358523,-400.0,0.0004357,3]
[341349619,1730818358533,-1000.0,0.0004358,19]
[341349620,1730818358542,-1198.3329,0.00043581,2]
[341349621,1730818358551,-2000.0,0.00043581,2]
[341349622,1730818358561,-103824.33293766,0.000436,10]
[341349623,1730818358570,-1000.0,0.000436,30]
[341349624,1730818358579,-796.0,0.000436,30]
[341349625,1730818358588,-1000.0,0.000436,30]
[341349626,1730818358597,-1311.0,0.000436,33]
[341349627,1730818358607,-201.2,0.000436,34]
[341349628,1730818358616,-200.0,0.000436,30]
[341349629,1730818358625,-1000.0,0.000436,19]
[341349630,1730818358636,-600.0,0.000436,120]
[341349631,1730818358646,-1000.0,0.0004362,19]
[341349632,1730818358656,-150.0,0.00043639,30]
[341349633,1730818358665,-1000.0,0.0004364,19]
[341349634,1730818358674,-500.0,0.00043646,120]
[341349635,1730818358683,-500.0,0.00043646,120]
[341349636,1730818358693,-150.0,0.00043647,30]
[341349637,1730818358702,-500.0,0.00043647,30]
[341349638,1730818358711,-150.0,0.00043647,30]
[341349639,1730818358720,-500.0,0.00043647,30]
[341349640,1730818358729,-150.0,0.00043647,90]
[341349641,1730818358738,-500.0,0.00043647,90]
[341349642,1730818358747,-150.0,0.00043647,90]
[341349643,1730818358756,-150.0,0.00043647,30]
[341349644,1730818358765,-500.0,0.00043647,30]
[341349645,1730818358775,-500.0,0.00043647,120]
[341349646,1730818358784,-150.0,0.00043647,120]